[Event "*** Titled Tuesday Blitz"]
[Site "Chess.com"]
[Date "2018.04.03"]
[Round "7"]
[White "Doraemon7"]
[Black "matiss90"]
[Result "0-1"]
[WhiteElo "2417"]
[BlackElo "2366"]
[TimeControl "180+2"]
[EndTime "14:33:50 PDT"]
[Termination "matiss90 won by resignation"]

1. d4 {[%clk 0:03:00.9]} 1... Nf6 {[%clk 0:00:34.3]} 2. c4 {[%clk 0:02:49.8]}
2... g6 {[%clk 0:00:35.2]} 3. Nf3 {[%clk 0:02:51.1]} 3... Bg7 {[%clk 0:00:37.1]}
4. Nc3 {[%clk 0:02:52.6]} 4... O-O {[%clk 0:00:38.5]} 5. Bg5 {[%clk 0:02:54.2]}
5... c5 {[%clk 0:00:31.3]} 6. e3 {[%clk 0:02:54.1]} 6... cxd4 {[%clk 0:00:32]}
7. Nxd4 {[%clk 0:02:56]} 7... Nc6 {[%clk 0:00:29.6]} 8. Be2 {[%clk 0:02:55.9]}
8... Nxd4 {[%clk 0:00:20.4]} 9. Qxd4 {[%clk 0:02:57.8]} 9... d6 {[%clk
0:00:18.2]} 10. O-O {[%clk 0:02:57.8]} 10... Be6 {[%clk 0:00:19.1]} 11. Qd2
{[%clk 0:02:52.8]} 11... Rc8 {[%clk 0:00:17.7]} 12. b3 {[%clk 0:02:53.2]} 12...
Qa5 {[%clk 0:00:18.6]} 13. Bh4 {[%clk 0:02:47.9]} 13... b5 {[%clk 0:00:15.3]}
14. Rab1 {[%clk 0:02:31.7]} 14... bxc4 {[%clk 0:00:10.2]} 15. b4 {[%clk
0:02:31.3]} 15... Qc7 {[%clk 0:00:04.4]} 16. Nb5 {[%clk 0:02:30.5]} 16... Qb8
{[%clk 0:00:04.7]} 17. Nc3 {[%clk 0:02:30.3]} 17... Rfd8 {[%clk 0:00:05.1]} 18.
a4 {[%clk 0:02:30.3]} 18... d5 {[%clk 0:00:05.8]} 19. Bg3 {[%clk 0:02:31.8]}
19... Qb7 {[%clk 0:00:05.7]} 20. Rfd1 {[%clk 0:02:33.4]} 20... h5 {[%clk
0:00:05.5]} 21. Bf3 {[%clk 0:02:33.6]} 21... Bg4 {[%clk 0:00:02.7]} 22. Be5
{[%clk 0:02:33.5]} 22... Bxf3 {[%clk 0:00:03.1]} 23. gxf3 {[%clk 0:02:35.4]}
23... Qc6 {[%clk 0:00:03.3]} 24. Nb5 {[%clk 0:02:33.4]} 24... Qe6 {[%clk
0:00:03.5]} 25. Bg3 {[%clk 0:02:33.8]} 25... Qf5 {[%clk 0:00:03.9]} 26. Nd4
{[%clk 0:02:34.8]} 26... Qh3 {[%clk 0:00:04.3]} 27. Rbc1 {[%clk 0:02:32.6]}
27... Ne8 {[%clk 0:00:03.7]} 28. Qe2 {[%clk 0:02:32.7]} 28... h4 {[%clk
0:00:04.8]} 29. Bf4 {[%clk 0:02:33.2]} 29... e5 {[%clk 0:00:06.1]} 30. Bg5
{[%clk 0:02:30.3]} 30... exd4 {[%clk 0:00:07.4]} 31. Bxd8 {[%clk 0:02:30.6]}
31... d3 {[%clk 0:00:08.3]} 32. Qf1 {[%clk 0:02:30.1]} 32... Qxf1+ {[%clk
0:00:07.5]} 33. Kxf1 {[%clk 0:02:32]} 33... Rxd8 {[%clk 0:00:08.2]} 34. e4
{[%clk 0:02:33.9]} 34... Nd6 {[%clk 0:00:06.2]} 35. exd5 {[%clk 0:02:34.3]}
35... Rb8 {[%clk 0:00:06.6]} 36. b5 {[%clk 0:02:33.8]} 36... a6 {[%clk 0:00:06]}
37. bxa6 {[%clk 0:02:31.6]} 37... Ra8 {[%clk 0:00:07]} 38. Rb1 {[%clk
0:02:25.2]} 38... Rxa6 {[%clk 0:00:07.9]} 39. Rb8+ {[%clk 0:02:26.3]} 39... Kh7
{[%clk 0:00:09]} 40. Rd8 {[%clk 0:02:28.2]} 40... Bd4 {[%clk 0:00:05.6]} 41. Re1
{[%clk 0:02:25.1]} 41... d2 {[%clk 0:00:04.5]} 42. Rd1 {[%clk 0:02:25.3]} 42...
c3 {[%clk 0:00:05.7]} 43. Ke2 {[%clk 0:02:26.5]} 43... Nf5 {[%clk 0:00:04.8]}
44. Rd7 {[%clk 0:02:25.7]} 44... Kg7 {[%clk 0:00:05.2]} 45. Kd3 {[%clk
0:02:26.9]} 45... Bf6 {[%clk 0:00:06]} 46. Rc7 {[%clk 0:02:17.5]} 46... Rxa4
{[%clk 0:00:06.2]} 47. Kc2 {[%clk 0:02:18.9]} 47... Rd4 {[%clk 0:00:04.1]} 48.
Rxc3 {[%clk 0:02:18.9]} 48... Rxd5 {[%clk 0:00:05]} 49. Rd3 {[%clk 0:02:17.4]}
49... Nd4+ {[%clk 0:00:04]} 50. Kxd2 {[%clk 0:02:18.8]} 50... Nxf3+ {[%clk
0:00:04.5]} 51. Ke3 {[%clk 0:02:20.4]} 51... Rxd3+ {[%clk 0:00:05.6]} 52. Rxd3
{[%clk 0:02:22.3]} 52... Nxh2 {[%clk 0:00:06.1]} 53. Kf4 {[%clk 0:02:23.1]}
53... Nf1 {[%clk 0:00:04.9]} 54. Kg4 {[%clk 0:02:22.8]} 54... Be5 {[%clk
0:00:03.4]} 55. Kh3 {[%clk 0:02:22.4]} 55... Ng3 {[%clk 0:00:02.8]} 56. Rd5
{[%clk 0:02:21.9]} 56... Bf4 {[%clk 0:00:02.2]} 57. Rd4 {[%clk 0:02:20.9]} 57...
Be5 {[%clk 0:00:02.9]} 58. Rd5 {[%clk 0:02:21.7]} 58... Kf6 {[%clk 0:00:03.2]}
59. Rb5 {[%clk 0:02:23.6]} 59... Nf5 {[%clk 0:00:03.6]} 60. Rb6+ {[%clk
0:02:24.3]} 60... Kg5 {[%clk 0:00:03.8]} 61. Rb5 {[%clk 0:02:25.3]} 61... Bf4
{[%clk 0:00:04.1]} 62. Rb3 {[%clk 0:02:26.8]} 62... Kh5 {[%clk 0:00:04.8]} 63.
Rd3 {[%clk 0:02:27.7]} 63... g5 {[%clk 0:00:05.4]} 64. f3 {[%clk 0:02:29.3]}
64... Bg3 {[%clk 0:00:05.5]} 65. Rd5 {[%clk 0:02:29.7]} 65... Kg6 {[%clk
0:00:05.8]} 66. Rb5 {[%clk 0:02:30.3]} 66... f6 {[%clk 0:00:06.7]} 67. Rb7
{[%clk 0:02:30.5]} 67... Be5 {[%clk 0:00:07.9]} 68. Kg4 {[%clk 0:02:30.2]} 68...
Nh6+ {[%clk 0:00:08.5]} 69. Kh3 {[%clk 0:02:31.5]} 69... Nf5 {[%clk 0:00:09.2]}
70. Kg4 {[%clk 0:02:31]} 70... Ne3+ {[%clk 0:00:10.4]} 71. Kh3 {[%clk
0:02:32.1]} 71... Kf5 {[%clk 0:00:11.7]} 72. Rb4 {[%clk 0:02:32.6]} 72... Nd5
{[%clk 0:00:11.4]} 73. Re4 {[%clk 0:02:33.2]} 73... Nf4+ {[%clk 0:00:12.2]} 74.
Kh2 {[%clk 0:02:34.8]} 74... Ng6+ {[%clk 0:00:09.1]} 75. Kh3 {[%clk 0:02:36]}
75... Nf4+ {[%clk 0:00:09.2]} 76. Kh2 {[%clk 0:02:36.9]} 76... Ne2+ {[%clk
0:00:09.3]} 77. Kh3 {[%clk 0:02:36.8]} 77... Nd4 {[%clk 0:00:10.4]} 78. Kg2
{[%clk 0:02:35.9]} 78... h3+ {[%clk 0:00:11.7]} 79. Kxh3 {[%clk 0:02:35.5]}
79... Nxf3 {[%clk 0:00:12.8]} 80. Ra4 {[%clk 0:02:37.4]} 80... Nd4 {[%clk
0:00:12]} 81. Kg2 {[%clk 0:02:39.3]} 81... Ke4 {[%clk 0:00:12.4]} 82. Ra2 {[%clk
0:02:38.6]} 82... f5 {[%clk 0:00:12.2]} 83. Ra1 {[%clk 0:02:39.9]} 83... Bf4
{[%clk 0:00:12.6]} 84. Re1+ {[%clk 0:02:41.3]} 84... Be3 {[%clk 0:00:13.8]} 85.
Rd1 {[%clk 0:02:43.2]} 85... f4 {[%clk 0:00:14.3]} 86. Rf1 {[%clk 0:02:44.9]}
86... g4 {[%clk 0:00:14.8]} 87. Rd1 {[%clk 0:02:46]} 87... Nf5 {[%clk
0:00:12.2]} 88. Rd8 {[%clk 0:02:46.6]} 88... f3+ {[%clk 0:00:12.8]} 89. Kf1
{[%clk 0:02:47.4]} 89... Ng3+ {[%clk 0:00:14.1]} 90. Ke1 {[%clk 0:02:47.9]}
90... f2+ {[%clk 0:00:15.5]} 0-1

[Event "*** Titled Tuesday Blitz"]
[Site "Chess.com"]
[Date "2018.04.03"]
[Round "7"]
[White "nickmatta"]
[Black "pedromartinez91"]
[Result "0-1"]
[WhiteElo "2299"]
[BlackElo "2378"]
[TimeControl "180+2"]
[EndTime "14:34:10 PDT"]
[Termination "pedromartinez91 won by resignation"]

1. d4 {[%clk 0:03:01.9]} 1... Nf6 {[%clk 0:02:55.2]} 2. c4 {[%clk 0:03:02.6]}
2... g6 {[%clk 0:02:56.1]} 3. Nc3 {[%clk 0:03:03.7]} 3... Bg7 {[%clk 0:02:57.7]}
4. e4 {[%clk 0:03:05]} 4... O-O {[%clk 0:02:59.3]} 5. Nf3 {[%clk 0:03:06.7]}
5... c6 {[%clk 0:03:00.3]} 6. Bd3 {[%clk 0:02:49.3]} 6... d5 {[%clk 0:02:59.3]}
7. cxd5 {[%clk 0:02:49.4]} 7... cxd5 {[%clk 0:03:00.2]} 8. e5 {[%clk 0:02:50.7]}
8... Ne8 {[%clk 0:03:00]} 9. h3 {[%clk 0:02:45.2]} 9... Nc6 {[%clk 0:03:00.6]}
10. O-O {[%clk 0:02:45]} 10... f6 {[%clk 0:03:02]} 11. Re1 {[%clk 0:02:13.7]}
11... e6 {[%clk 0:02:23]} 12. Bd2 {[%clk 0:01:54.9]} 12... fxe5 {[%clk
0:02:13.4]} 13. dxe5 {[%clk 0:01:55.3]} 13... Bd7 {[%clk 0:02:01.5]} 14. Rc1
{[%clk 0:01:29.5]} 14... Rxf3 {[%clk 0:01:55.5]} 15. Qxf3 {[%clk 0:01:29.2]}
15... Nxe5 {[%clk 0:01:57.1]} 16. Qe2 {[%clk 0:01:30.4]} 16... Nxd3 {[%clk
0:01:58]} 17. Qxd3 {[%clk 0:01:31.9]} 17... Nd6 {[%clk 0:01:45.8]} 18. Bf4
{[%clk 0:01:20.7]} 18... Nf5 {[%clk 0:01:39.8]} 19. Be5 {[%clk 0:01:18.6]} 19...
Bh6 {[%clk 0:01:40]} 20. Rcd1 {[%clk 0:01:17]} 20... Bc6 {[%clk 0:01:37]} 21.
Ne4 {[%clk 0:01:07.4]} 21... Bg7 {[%clk 0:01:20]} 22. Nc5 {[%clk 0:01:01.5]}
22... Qe7 {[%clk 0:01:09.1]} 23. Bxg7 {[%clk 0:00:56.4]} 23... Nxg7 {[%clk
0:01:05.7]} 24. Nb3 {[%clk 0:00:23.1]} 24... e5 {[%clk 0:00:54.1]} 25. Na5
{[%clk 0:00:20.3]} 25... Re8 {[%clk 0:00:42.8]} 26. Qb3 {[%clk 0:00:13.4]} 26...
Qd7 {[%clk 0:00:38]} 27. Rc1 {[%clk 0:00:10.5]} 27... Nf5 {[%clk 0:00:35.5]} 28.
Red1 {[%clk 0:00:06.7]} 28... Nd4 {[%clk 0:00:35.4]} 29. Qb4 {[%clk 0:00:07.7]}
29... Ne2+ {[%clk 0:00:34.5]} 30. Kf1 {[%clk 0:00:09.3]} 30... Nxc1 {[%clk
0:00:36.4]} 31. Rxc1 {[%clk 0:00:10.6]} 31... Qc8 {[%clk 0:00:28.6]} 32. Kg1
{[%clk 0:00:09.4]} 32... Qd7 {[%clk 0:00:28.5]} 33. Qc5 {[%clk 0:00:09.5]} 33...
b6 {[%clk 0:00:20.3]} 34. Qxc6 {[%clk 0:00:10.4]} 34... Qxc6 {[%clk 0:00:17.7]}
35. Rxc6 {[%clk 0:00:12.3]} 35... bxa5 {[%clk 0:00:18.3]} 36. Rc5 {[%clk
0:00:06.9]} 36... Rb8 {[%clk 0:00:15.8]} 37. Rxd5 {[%clk 0:00:04.6]} 37... a4
{[%clk 0:00:16.1]} 38. Ra5 {[%clk 0:00:05]} 38... Rxb2 {[%clk 0:00:16.3]} 39.
Rxa4 {[%clk 0:00:05.8]} 39... Rb7 {[%clk 0:00:16.5]} 40. Ra5 {[%clk 0:00:06.2]}
40... Re7 {[%clk 0:00:17.5]} 41. Kf1 {[%clk 0:00:07.5]} 41... Kf7 {[%clk
0:00:18.9]} 42. Ke2 {[%clk 0:00:09.4]} 42... Ke6 {[%clk 0:00:20.2]} 43. Ke3
{[%clk 0:00:10.5]} 43... Rb7 {[%clk 0:00:20.9]} 44. a3 {[%clk 0:00:10.1]} 44...
Kf5 {[%clk 0:00:20.6]} 45. g4+ {[%clk 0:00:09.9]} 45... Kg5 {[%clk 0:00:21.4]}
46. Rxe5+ {[%clk 0:00:09.6]} 46... Kh4 {[%clk 0:00:23]} 47. Ra5 {[%clk
0:00:06.8]} 47... Kxh3 {[%clk 0:00:24]} 48. Kf4 {[%clk 0:00:07.1]} 48... Kg2
{[%clk 0:00:23.8]} 49. f3 {[%clk 0:00:07.2]} 49... Rf7+ {[%clk 0:00:24.7]} 50.
Ke4 {[%clk 0:00:06.1]} 50... Kg3 {[%clk 0:00:20.2]} 51. Ra6 {[%clk 0:00:03.3]}
51... Rf4+ {[%clk 0:00:19.2]} 52. Ke5 {[%clk 0:00:03.4]} 52... Rxf3 {[%clk
0:00:20.3]} 53. Rxa7 {[%clk 0:00:04.8]} 53... h6 {[%clk 0:00:17.8]} 54. Ra6
{[%clk 0:00:06.2]} 54... g5 {[%clk 0:00:15]} 55. Rxh6 {[%clk 0:00:06.3]} 55...
Kxg4 {[%clk 0:00:16.2]} 56. Ra6 {[%clk 0:00:06]} 56... Re3+ {[%clk 0:00:17]} 57.
Kf6 {[%clk 0:00:06.8]} 57... Rf3+ {[%clk 0:00:16.4]} 58. Kg6 {[%clk 0:00:08]}
58... Kh4 {[%clk 0:00:15.6]} 59. a4 {[%clk 0:00:07.9]} 59... g4 {[%clk
0:00:16.6]} 60. Kh6 {[%clk 0:00:07.5]} 60... g3 {[%clk 0:00:17.4]} 61. a5 {[%clk
0:00:07.1]} 61... g2 {[%clk 0:00:18.7]} 62. Rg6 {[%clk 0:00:08.1]} 62... Rg3
{[%clk 0:00:19.6]} 0-1

[Event "*** Titled Tuesday Blitz"]
[Site "Chess.com"]
[Date "2018.04.03"]
[Round "7"]
[White "indfraeng"]
[Black "Entilza"]
[Result "1/2-1/2"]
[WhiteElo "1822"]
[BlackElo "2183"]
[TimeControl "180+2"]
[EndTime "14:34:40 PDT"]
[Termination "Game drawn by agreement"]

1. d4 {[%clk 0:03:01.9]} 1... d5 {[%clk 0:02:59]} 2. c4 {[%clk 0:03:02.7]} 2...
e6 {[%clk 0:03:00.2]} 3. Nc3 {[%clk 0:03:03.2]} 3... Be7 {[%clk 0:03:01.6]} 4.
cxd5 {[%clk 0:03:01.9]} 4... exd5 {[%clk 0:03:01.5]} 5. Bf4 {[%clk 0:03:02.4]}
5... Nf6 {[%clk 0:03:00.8]} 6. e3 {[%clk 0:02:58.2]} 6... c6 {[%clk 0:02:59.4]}
7. Bd3 {[%clk 0:02:58.7]} 7... Bg4 {[%clk 0:02:57.7]} 8. f3 {[%clk 0:02:52.1]}
8... Bh5 {[%clk 0:02:57.6]} 9. Nge2 {[%clk 0:02:52.9]} 9... Bg6 {[%clk
0:02:55.6]} 10. Bg3 {[%clk 0:02:50]} 10... O-O {[%clk 0:02:54]} 11. Nf4 {[%clk
0:02:49.1]} 11... Bxd3 {[%clk 0:02:54.6]} 12. Nxd3 {[%clk 0:02:49.1]} 12... Re8
{[%clk 0:02:53.7]} 13. O-O {[%clk 0:02:48.7]} 13... Bd6 {[%clk 0:02:51.9]} 14.
Bxd6 {[%clk 0:02:45]} 14... Qxd6 {[%clk 0:02:53.8]} 15. Re1 {[%clk 0:02:45.4]}
15... Nbd7 {[%clk 0:02:53.1]} 16. Qb3 {[%clk 0:02:45.6]} 16... b6 {[%clk
0:02:49.6]} 17. Rac1 {[%clk 0:02:44.5]} 17... Re7 {[%clk 0:02:47.4]} 18. Qb4
{[%clk 0:02:44.3]} 18... c5 {[%clk 0:02:39.8]} 19. dxc5 {[%clk 0:02:41.8]} 19...
bxc5 {[%clk 0:02:40.5]} 20. Qf4 {[%clk 0:02:42.3]} 20... Qa6 {[%clk 0:02:29.2]}
21. Red1 {[%clk 0:02:30.9]} 21... Rae8 {[%clk 0:02:27.2]} 22. Qa4 {[%clk
0:01:14.9]} 22... Qb7 {[%clk 0:01:58.8]} 23. Nf4 {[%clk 0:00:47.5]} 23... Nb6
{[%clk 0:01:40.8]} 24. Qb5 {[%clk 0:00:40.9]} 24... Rc8 {[%clk 0:01:24.9]} 25.
Nfxd5 {[%clk 0:00:40.1]} 25... Re6 {[%clk 0:01:14]} 26. Nxf6+ {[%clk 0:00:33.9]}
26... Rxf6 {[%clk 0:01:12.6]} 27. Nd5 {[%clk 0:00:34.1]} 27... Re6 {[%clk
0:01:10.9]} 28. Nxb6 {[%clk 0:00:34.8]} 28... Rxb6 {[%clk 0:01:12]} 29. Qd3
{[%clk 0:00:32.2]} 29... h6 {[%clk 0:01:08.5]} 30. b3 {[%clk 0:00:29.2]} 30...
Rb4 {[%clk 0:01:08.7]} 31. Qd7 {[%clk 0:00:28.4]} 31... Rc7 {[%clk 0:01:09.5]}
32. Qd8+ {[%clk 0:00:25.4]} 32... Kh7 {[%clk 0:01:10.2]} 33. Qd3+ {[%clk
0:00:25.7]} 33... Kg8 {[%clk 0:01:09.8]} 34. Qd8+ {[%clk 0:00:26]} 34... Kh7
{[%clk 0:01:10.3]} 35. Qd3+ {[%clk 0:00:26.8]} 35... g6 {[%clk 0:01:11.4]} 36.
Qd5 {[%clk 0:00:25.9]} 36... Qb6 {[%clk 0:01:07.9]} 37. Rc4 {[%clk 0:00:23.2]}
37... a5 {[%clk 0:01:06.1]} 38. e4 {[%clk 0:00:20.5]} 38... a4 {[%clk
0:01:05.6]} 39. bxa4 {[%clk 0:00:20.4]} 39... Qa6 {[%clk 0:00:57.9]} 40. Rxb4
{[%clk 0:00:20.2]} 40... cxb4 {[%clk 0:00:59]} 41. Qb3 {[%clk 0:00:20.8]} 41...
Qb6+ {[%clk 0:00:54.9]} 42. Kh1 {[%clk 0:00:20.4]} 42... Kg7 {[%clk 0:00:55.4]}
43. h3 {[%clk 0:00:21.2]} 43... Rc3 {[%clk 0:00:55.1]} 44. Qb2 {[%clk
0:00:21.6]} 44... Kh7 {[%clk 0:00:52.6]} 45. Rb1 {[%clk 0:00:20.2]} 45... Qc5
{[%clk 0:00:49.6]} 46. Qe2 {[%clk 0:00:19.4]} 46... Rc2 {[%clk 0:00:47.4]} 47.
Qb5 {[%clk 0:00:19.3]} 47... Qf2 {[%clk 0:00:43.3]} 48. Qf1 {[%clk 0:00:18.2]}
48... Qc5 {[%clk 0:00:39.9]} 49. Qg1 {[%clk 0:00:17.9]} 49... Qc3 {[%clk
0:00:39.9]} 50. Qb6 {[%clk 0:00:15.8]} 50... Rxa2 {[%clk 0:00:32.1]} 51. Qxb4
{[%clk 0:00:16.1]} 51... Qc2 {[%clk 0:00:29.8]} 52. Rg1 {[%clk 0:00:16.7]} 52...
Rxa4 {[%clk 0:00:30.3]} 53. Qb7 {[%clk 0:00:17]} 53... Qa2 {[%clk 0:00:30.8]}
54. Qc7 {[%clk 0:00:17.1]} 54... h5 {[%clk 0:00:31.5]} 55. e5 {[%clk 0:00:17.8]}
55... Rd4 {[%clk 0:00:26.4]} 56. Re1 {[%clk 0:00:17.9]} 56... Qe6 {[%clk
0:00:21.6]} 57. Qb8 {[%clk 0:00:16]} 57... Rd2 {[%clk 0:00:21.5]} 58. Qb4 {[%clk
0:00:16]} 58... Rc2 {[%clk 0:00:21]} 59. Qd6 {[%clk 0:00:16.5]} 59... Qa2 {[%clk
0:00:19.9]} 60. e6 {[%clk 0:00:15.3]} 60... Rxg2 {[%clk 0:00:20.1]} 61. exf7
{[%clk 0:00:13.5]} 61... Rg5 {[%clk 0:00:20.6]} 62. Rg1 {[%clk 0:00:12.5]} 62...
Rxg1+ {[%clk 0:00:18.8]} 63. Kxg1 {[%clk 0:00:13.3]} 63... Qxf7 {[%clk
0:00:19.5]} 64. Qg3 {[%clk 0:00:14]} 64... Qa7+ {[%clk 0:00:19]} 65. Kh2 {[%clk
0:00:13.6]} 65... Qe3 {[%clk 0:00:18.2]} 66. Kg2 {[%clk 0:00:12.9]} 66... Kh6
{[%clk 0:00:18.2]} 67. f4 {[%clk 0:00:11.8]} 67... Qe2+ {[%clk 0:00:18.4]} 68.
Qf2 {[%clk 0:00:12.7]} 68... Qd3 {[%clk 0:00:18.9]} 69. Qf3 {[%clk 0:00:13.7]}
69... Qc2+ {[%clk 0:00:19]} 70. Qf2 {[%clk 0:00:14.6]} 70... Qc4 {[%clk
0:00:19.7]} 71. Qf1 {[%clk 0:00:14.8]} 71... Qd5+ {[%clk 0:00:20.1]} 72. Qf3
{[%clk 0:00:15.7]} 72... Qd2+ {[%clk 0:00:20.9]} 73. Qf2 {[%clk 0:00:16.2]}
73... Qd5+ {[%clk 0:00:20.1]} 1/2-1/2

[Event "*** Titled Tuesday Blitz"]
[Site "Chess.com"]
[Date "2018.04.03"]
[Round "7"]
[White "Noukii"]
[Black "LastHeroJr"]
[Result "0-1"]
[WhiteElo "2591"]
[BlackElo "2446"]
[TimeControl "180+2"]
[EndTime "14:34:53 PDT"]
[Termination "LastHeroJr won by resignation"]

1. d4 {[%clk 0:03:01.9]} 1... Nf6 {[%clk 0:03:00.6]} 2. Nf3 {[%clk 0:03:02.4]}
2... g6 {[%clk 0:03:01.9]} 3. c4 {[%clk 0:03:03.2]} 3... Bg7 {[%clk 0:03:03]} 4.
Nc3 {[%clk 0:03:04.8]} 4... O-O {[%clk 0:03:03.9]} 5. Bg5 {[%clk 0:03:06]} 5...
d6 {[%clk 0:03:03.3]} 6. e3 {[%clk 0:03:07.4]} 6... h6 {[%clk 0:03:04.7]} 7. Bh4
{[%clk 0:03:08.6]} 7... g5 {[%clk 0:03:06.2]} 8. Bg3 {[%clk 0:03:09.9]} 8... Nh5
{[%clk 0:03:06.7]} 9. Qc2 {[%clk 0:03:10.6]} 9... e6 {[%clk 0:03:07.8]} 10. Be2
{[%clk 0:03:11.8]} 10... Na6 {[%clk 0:03:08.8]} 11. a3 {[%clk 0:03:10.2]} 11...
Qe7 {[%clk 0:03:05]} 12. O-O-O {[%clk 0:03:08.9]} 12... Nxg3 {[%clk 0:03:01.8]}
13. hxg3 {[%clk 0:03:08.7]} 13... c5 {[%clk 0:03:02.6]} 14. d5 {[%clk 0:02:41]}
14... Nc7 {[%clk 0:03:02.2]} 15. dxe6 {[%clk 0:02:33]} 15... Bxe6 {[%clk
0:02:57.9]} 16. Ne4 {[%clk 0:02:17.6]} 16... Bf5 {[%clk 0:02:52.9]} 17. Bd3
{[%clk 0:02:17.9]} 17... Bg6 {[%clk 0:02:01.4]} 18. g4 {[%clk 0:01:50.6]} 18...
d5 {[%clk 0:01:34.6]} 19. Ng3 {[%clk 0:01:50.4]} 19... dxc4 {[%clk 0:01:28.4]}
20. Bxg6 {[%clk 0:01:31.5]} 20... fxg6 {[%clk 0:01:30.3]} 21. Qxc4+ {[%clk
0:01:32.5]} 21... Rf7 {[%clk 0:01:12.8]} 22. Rd2 {[%clk 0:01:12.2]} 22... b5
{[%clk 0:01:12.5]} 23. Qe4 {[%clk 0:01:12.6]} 23... Qxe4 {[%clk 0:00:52.5]} 24.
Nxe4 {[%clk 0:01:13.1]} 24... c4 {[%clk 0:00:54]} 25. Rhd1 {[%clk 0:01:08.7]}
25... Re7 {[%clk 0:00:45.6]} 26. Nc3 {[%clk 0:00:58.8]} 26... a5 {[%clk
0:00:41.2]} 27. Rd7 {[%clk 0:00:59.4]} 27... Rae8 {[%clk 0:00:42.3]} 28. Rxe7
{[%clk 0:00:56.3]} 28... Rxe7 {[%clk 0:00:44.2]} 29. Rd8+ {[%clk 0:00:57.2]}
29... Kf7 {[%clk 0:00:42.8]} 30. Rb8 {[%clk 0:00:40.8]} 30... Bxc3 {[%clk
0:00:42.1]} 31. bxc3 {[%clk 0:00:42.7]} 31... Nd5 {[%clk 0:00:31.5]} 32. Kc2
{[%clk 0:00:37.1]} 32... Nf6 {[%clk 0:00:32.6]} 33. Nh2 {[%clk 0:00:31.4]} 33...
Re5 {[%clk 0:00:32.1]} 34. Ra8 {[%clk 0:00:29.6]} 34... a4 {[%clk 0:00:32.4]}
35. Rb8 {[%clk 0:00:26.2]} 35... Nd7 {[%clk 0:00:26.6]} 36. Rb7 {[%clk
0:00:26.3]} 36... Ke6 {[%clk 0:00:28]} 37. Nf3 {[%clk 0:00:26.8]} 37... Re4
{[%clk 0:00:26.3]} 38. Nd4+ {[%clk 0:00:24.5]} 38... Ke7 {[%clk 0:00:27.6]} 39.
Rxb5 {[%clk 0:00:12.7]} 39... Rxg4 {[%clk 0:00:28.1]} 40. g3 {[%clk 0:00:14.6]}
40... h5 {[%clk 0:00:28.2]} 41. Kd2 {[%clk 0:00:15.9]} 41... h4 {[%clk
0:00:29.5]} 42. Ke2 {[%clk 0:00:14.9]} 42... hxg3 {[%clk 0:00:29.5]} 43. fxg3
{[%clk 0:00:15.9]} 43... Rxg3 {[%clk 0:00:31.4]} 44. Kf2 {[%clk 0:00:17.5]}
44... Rg4 {[%clk 0:00:29.1]} 45. Rb4 {[%clk 0:00:19.4]} 45... Ne5 {[%clk
0:00:28.6]} 46. Rxa4 {[%clk 0:00:20.9]} 46... Rh4 {[%clk 0:00:29.6]} 47. Ra7+
{[%clk 0:00:21.6]} 47... Kd6 {[%clk 0:00:30.8]} 48. Ra6+ {[%clk 0:00:23]} 48...
Kd5 {[%clk 0:00:28.8]} 49. Ra5+ {[%clk 0:00:24.3]} 49... Kd6 {[%clk 0:00:26.1]}
50. a4 {[%clk 0:00:25.8]} 50... Rh2+ {[%clk 0:00:25.8]} 51. Kg3 {[%clk
0:00:27.3]} 51... Ra2 {[%clk 0:00:27.7]} 52. Ra6+ {[%clk 0:00:28.4]} 52... Kd5
{[%clk 0:00:28]} 53. a5 {[%clk 0:00:29.9]} 53... Ra3 {[%clk 0:00:28]} 54. Ra8
{[%clk 0:00:29.4]} 54... Rxc3 {[%clk 0:00:28.5]} 55. Kf2 {[%clk 0:00:30.9]}
55... Ra3 {[%clk 0:00:29.3]} 56. a6 {[%clk 0:00:31.6]} 56... Ng4+ {[%clk
0:00:30.3]} 57. Ke2 {[%clk 0:00:32]} 57... Rxe3+ {[%clk 0:00:31.2]} 58. Kd2
{[%clk 0:00:33.3]} 58... Rd3+ {[%clk 0:00:32.2]} 59. Kc2 {[%clk 0:00:34.3]}
59... Ne3+ {[%clk 0:00:33.5]} 60. Kb2 {[%clk 0:00:35.1]} 60... c3+ {[%clk
0:00:33.9]} 61. Kb3 {[%clk 0:00:35.9]} 61... c2+ {[%clk 0:00:34.7]} 62. Kb2
{[%clk 0:00:37.4]} 62... Nc4+ {[%clk 0:00:22.4]} 63. Kxc2 {[%clk 0:00:38]} 63...
Ra3 {[%clk 0:00:23.5]} 64. Nb3 {[%clk 0:00:38.7]} 64... g4 {[%clk 0:00:21.7]}
65. Kc3 {[%clk 0:00:40.1]} 65... Nb6 {[%clk 0:00:19.7]} 66. Rd8+ {[%clk
0:00:41.2]} 66... Kc6 {[%clk 0:00:21]} 67. Rg8 {[%clk 0:00:41.6]} 67... Nd5+
{[%clk 0:00:20]} 68. Kb2 {[%clk 0:00:42.4]} 68... Rxa6 {[%clk 0:00:20.1]} 69.
Rxg6+ {[%clk 0:00:43.9]} 69... Kb5 {[%clk 0:00:20.6]} 70. Nd4+ {[%clk
0:00:45.2]} 70... Ka5 {[%clk 0:00:21.9]} 71. Nb3+ {[%clk 0:00:46.2]} 71... Kb5
{[%clk 0:00:23.1]} 72. Rxg4 {[%clk 0:00:48.1]} 72... Rf6 {[%clk 0:00:22.8]} 73.
Rg5 {[%clk 0:00:48.8]} 73... Kc4 {[%clk 0:00:22.7]} 74. Na5+ {[%clk 0:00:49.1]}
74... Kd4 {[%clk 0:00:21.7]} 75. Rg4+ {[%clk 0:00:50.2]} 75... Kc5 {[%clk
0:00:21.6]} 76. Nb3+ {[%clk 0:00:50.9]} 76... Kb5 {[%clk 0:00:23.1]} 77. Nd4+
{[%clk 0:00:47.2]} 77... Kc4 {[%clk 0:00:21.5]} 78. Ne2+ {[%clk 0:00:46.6]}
78... Kc5 {[%clk 0:00:21.2]} 79. Kc2 {[%clk 0:00:45]} 79... Ne3+ {[%clk
0:00:21.6]} 80. Kd3 {[%clk 0:00:46.4]} 80... Nxg4 {[%clk 0:00:23.5]} 0-1